fUST/lending_fUST_20260505
["ID","MTS","AMOUNT","RATE_DAILY","PERIOD"]
[421586814,1777932647000,-773.2413689,0.00014244,2]
[421586815,1777932647000,-720.0,0.00014247,2]
[421586810,1777932647000,-719.04747942,0.00014134,2]
[421586812,1777932647000,-4067.04623942,0.00014185,2]
[421586816,1777932647000,-438.39290665,0.00014292,2]
[421586813,1777932647000,-745.65223616,0.00014189,2]
[421586819,1777932647000,-862.28603014,0.00014409,2]
[421586818,1777932647000,-831.51979763,0.00014354,2]
[421586821,1777932647000,-155.0,0.00014519,2]
[421586820,1777932647000,-894.19061326,0.00014464,2]
[421586822,1777932647000,-927.27566595,0.00014519,2]
[421586824,1777932647000,-10026.24006196,0.00015,2]
[421586826,1777932647000,-842.0,0.00015,2]
[421586825,1777932647000,-792.35336186,0.00015,2]
[421586827,1777932647000,-8409.87916741,0.00015,2]
[421586830,1777932647000,-191.39601213,0.00015063,2]
[421586828,1777932647000,-151.0,0.00015,2]
[421586833,1777932647000,-455.9805713,0.00015063,2]
[421586835,1777932647000,-174.839128,0.00015068,2]
[421586837,1777932647000,-151.0,0.000151,2]
[421586875,1777932647000,-10044.23252927,0.000155,2]
[421586867,1777932647000,-649.0,0.0001536,2]
[421586865,1777932647000,-154.0,0.0001536,2]
[421586898,1777932647000,-500.0,0.00016,2]
[421586900,1777932647000,-3000.0,0.0001602,2]
[421586899,1777932647000,-3000.0,0.0001601,2]
[421586897,1777932647000,-500.0,0.00016,2]
[421586896,1777932647000,-3000.0,0.00016,2]
[421586890,1777932647000,-151.0,0.000159,2]
[421586894,1777932647000,-4627.63828682,0.00016,2]
[421586905,1777932647000,-3000.0,0.0001606,2]
[421586904,1777932647000,-5000.0,0.0001606,2]
[421586915,1777932647000,-151.0,0.000162,2]
[421586907,1777932647000,-4067.04623942,0.00016071,2]
[421586916,1777932647000,-1815.83723697,0.000162,2]
[421586906,1777932647000,-3000.0,0.0001607,2]
[421586909,1777932647000,-3000.0,0.0001609,2]
[421586912,1777932647000,-151.0,0.000161,2]
[421586908,1777932647000,-3000.0,0.0001608,2]
[421586914,1777932647000,-5270.200665,0.0001611,2]
[421586913,1777932647000,-1163.64537376,0.00016109,2]
[421586911,1777932647000,-3000.0,0.000161,2]
[421586910,1777932647000,-10044.23252927,0.000161,2]
[421586869,1777932647000,-649.0,0.0001536,2]
[421586895,1777932647000,-782.82909636,0.00016,2]
[421586892,1777932647000,-10004.9369598,0.00016,2]
[421586880,1777932647000,-864.0,0.00015672,2]
[421586903,1777932647000,-3000.0,0.0001605,2]
[421586870,1777932647000,-649.0,0.0001536,2]
[421586873,1777932647000,-657.49015545,0.0001536,2]
[421586876,1777932647000,-151.0,0.000156,2]
[421586874,1777932647000,-649.0,0.0001536,2]
[421586878,1777932647000,-151.0,0.000156,2]
[421586888,1777932647000,-151.0,0.000159,2]
[421586871,1777932647000,-649.0,0.0001536,2]
[421586889,1777932647000,-10044.23252927,0.000159,2]
[421586877,1777932647000,-10044.23252927,0.000156,2]
[421586879,1777932647000,-1294.74483276,0.00015632,2]
[421586893,1777932647000,-700.0,0.00016,3]
[421586882,1777932647000,-338.562277,0.00015778,2]
[421586902,1777932647000,-3000.0,0.0001604,2]
[421586891,1777932647000,-2267.52163286,0.00016,2]
[421586901,1777932647000,-3000.0,0.0001603,2]
[421586887,1777932647000,-155.0,0.00015839,2]
[421586881,1777932647000,-245.889644,0.00015768,7]
[421586883,1777932647000,-160.0,0.00015788,2]
[421586886,1777932647000,-10044.23252927,0.000158,2]
[421586885,1777932647000,-3753.761957,0.00015788,2]
[421586884,1777932647000,-1956.880978,0.00015788,2]
[421586946,1777933833000,-601.0,0.00012789,2]
[421586945,1777933833000,-160.0,0.00012789,2]
[421586949,1777933833000,-150.3194007,0.00013589,2]
[421586948,1777933833000,-160.0,0.00012792,2]
[421586947,1777933833000,-306.2022972,0.00012791,2]
[421586951,1777933833000,-1000.0,0.00013699,2]
[421586950,1777933833000,-1000.0,0.00013699,2]
[421586953,1777933833000,-676.13958824,0.00014118,2]
[421586952,1777933833000,-160.0,0.00014075,2]
[421586965,1777933833000,-676.13958824,0.00014118,2]
[421586975,1777933833000,-246339.42626671,0.00014119,2]
[421586969,1777933833000,-676.13958824,0.00014118,2]
[421586957,1777933833000,-566.50466615,0.00014118,2]
[421586961,1777933833000,-676.13958824,0.00014118,2]
[421586955,1777933833000,-234.03615009,0.00014118,2]
[421586971,1777933833000,-676.13958824,0.00014118,2]
[421586959,1777933833000,-676.13958824,0.00014118,2]
[421586967,1777933833000,-676.13958824,0.00014118,2]
[421586974,1777933833000,-2930.67965853,0.00014118,2]
[421586973,1777933833000,-676.13958824,0.00014118,2]
[421586963,1777933833000,-676.13958824,0.00014118,2]
[421586987,1777933838000,-676.13958824,0.00014118,2]
[421586988,1777933838000,-115.1981091,0.00014118,2]
[421586985,1777933838000,-676.13958824,0.00014118,2]
[421586986,1777933838000,-676.13958824,0.00014118,2]
[421586983,1777933838000,-676.13958824,0.00014118,2]
[421586984,1777933838000,-676.13958824,0.00014118,2]
[421587001,1777933840000,-239.05852086,0.00014118,2]
[421587000,1777933840000,-560.94147914,0.00014118,2]
[421587169,1777934269000,5000.0,0.00020822,120]
[421587170,1777934275000,5000.0,0.00020822,120]
[421587171,1777934278000,5000.0,0.00020822,120]
[421587172,1777934280000,5000.0,0.00020822,120]
[421587173,1777934283000,5000.0,0.00020822,120]
[421587174,1777934289000,5000.0,0.00020822,120]
[421587175,1777934292000,5000.0,0.00020822,120]
[421587176,1777934315000,152.04821557,0.00020822,120]
[421587177,1777934406000,169.0,0.00020117,120]
[421587178,1777934429000,171.0,0.00019111,120]
[421587179,1777934431000,171.0,0.00020067,120]
[421587549,1777935043000,-160.0,0.00013653,2]
[421587550,1777935043000,-160.0,0.00013653,2]
[421587552,1777935043000,-304.92459928,0.00013661,2]
[421587548,1777935043000,-160.0,0.00013653,2]
[421587551,1777935043000,-614.0,0.00013653,2]
[421587553,1777935043000,-422.43796156,0.00013699,2]
[421587554,1777935043000,-577.56203844,0.00013699,2]
[421587555,1777935043000,-113.21836533,0.00013699,2]
[421587588,1777935046000,-15386.21699798,0.00013819,2]
[421587565,1777935046000,-5757.13878965,0.000137,2]
[421587564,1777935046000,-886.78163467,0.00013699,2]
[421587566,1777935046000,-14167.84697413,0.000137,2]
[421587568,1777935046000,-7427.43394637,0.000137,2]
[421587569,1777935046000,-11072.68545965,0.000137,2]
[421587567,1777935046000,-5010.58719566,0.000137,2]
[421587570,1777935046000,-162.48,0.00013739,2]
[421587574,1777935046000,-689.43099867,0.00013818,2]
[421587572,1777935046000,-689.43099867,0.00013818,2]
[421587577,1777935046000,-689.43099867,0.00013818,2]
[421587571,1777935046000,-214.68335121,0.00013818,2]
[421587581,1777935046000,-689.43099867,0.00013818,2]
[421587576,1777935046000,-689.43099867,0.00013818,2]
[421587586,1777935046000,-689.43099867,0.00013818,2]
[421587584,1777935046000,-689.43099867,0.00013818,2]
[421587585,1777935046000,-689.43099867,0.00013818,2]
[421587583,1777935046000,-689.43099867,0.00013818,2]
[421587587,1777935046000,-91508.49455464,0.00013819,2]
[421587578,1777935046000,-689.43099867,0.00013818,2]
[421587580,1777935046000,-689.43099867,0.00013818,2]
[421587579,1777935046000,-689.43099867,0.00013818,2]
[421587575,1777935046000,-689.43099867,0.00013818,2]
[421587582,1777935046000,-689.43099867,0.00013818,2]
[421587573,1777935046000,-396.55326631,0.00013818,2]
[421587596,1777935083000,2026.0,0.00020822,120]
[421587615,1777935539000,1652.99765875,0.00020822,120]
[421587636,1777936232000,-429.48834236,0.00013618,2]
[421587629,1777936232000,-162.48,0.00013445,2]
[421587630,1777936232000,-611.0,0.00013445,2]
[421587633,1777936232000,-349.68409664,0.000136,2]
[421587634,1777936232000,-325.95932506,0.000136,2]
[421587631,1777936232000,-298.8261073,0.00013484,2]
[421587632,1777936232000,-217.32305734,0.000136,2]
[421587637,1777936232000,-229.67194971,0.00013618,2]
[421587635,1777936232000,-365.38893684,0.000136,2]
[421587638,1777936232000,-802.89758221,0.00013618,2]
[421587646,1777936232000,-6830.83642406,0.00013619,2]
[421587643,1777936232000,-802.89758221,0.00013618,2]
[421587644,1777936232000,-802.89758221,0.00013618,2]
[421587639,1777936232000,-802.89758221,0.00013618,2]
[421587641,1777936232000,-802.89758221,0.00013618,2]
[421587642,1777936232000,-802.89758221,0.00013618,2]
[421587640,1777936232000,-802.89758221,0.00013618,2]
[421587645,1777936232000,-802.89758221,0.00013618,2]
[421587683,1777936240000,-802.89758221,0.00013618,2]
[421587682,1777936240000,-802.89758221,0.00013618,2]
[421587685,1777936240000,-802.89758221,0.00013618,2]
[421587684,1777936240000,-802.89758221,0.00013618,2]
[421587686,1777936240000,-802.89758221,0.00013618,2]
[421587688,1777936240000,-500.0,0.00013618,2]
[421587687,1777936240000,-304.41624343,0.00013618,2]
[421587690,1777936240000,-500.0,0.00013618,2]
[421587700,1777936240000,-500.0,0.00013618,2]
[421587702,1777936240000,-802.89758221,0.00013618,2]
[421587691,1777936240000,-500.0,0.00013618,2]
[421587693,1777936240000,-802.89758221,0.00013618,2]
[421587697,1777936240000,-474.64233015,0.00013618,2]
[421587689,1777936240000,-802.89758221,0.00013618,2]
[421587709,1777936240000,-643.78105749,0.00013619,2]
[421587708,1777936240000,-20402.30562047,0.00013619,2]
[421587701,1777936240000,-500.0,0.00013618,2]
[421587707,1777936240000,-614.0,0.00013618,2]
[421587705,1777936240000,-286.83676374,0.00013618,2]
[421587706,1777936240000,-802.89758221,0.00013618,2]
[421587703,1777936240000,-500.0,0.00013618,2]
[421587698,1777936240000,-500.0,0.00013618,2]
[421587695,1777936240000,-500.0,0.00013618,2]
[421587694,1777936240000,-500.0,0.00013618,2]
[421587692,1777936240000,-500.0,0.00013618,2]
[421587704,1777936240000,-613.39428385,0.00013618,2]
[421587728,1777936243000,-7470.39449217,0.00013619,2]
[421587737,1777936246000,-6175.0,0.00013619,2]
[421587736,1777936246000,-75394.04987132,0.00013619,2]
[421587735,1777936246000,-9660.11775858,0.00013619,2]
[421587767,1777937432000,-2274.70622617,0.00011451,2]
[421587773,1777937432000,-1739.17799678,0.00011688,2]
[421587769,1777937432000,-583.0,0.00011567,2]
[421587774,1777937432000,-660.26374862,0.00011688,2]
[421587775,1777937432000,-1671.62384067,0.00011688,2]
[421587772,1777937432000,-435.22972892,0.00011688,2]
[421587776,1777937432000,-294.03811208,0.00011688,2]
[421587771,1777937432000,-298.03375701,0.00011627,2]
[421588381,1777937447000,-32721.7475791,0.00013419,2]
[421588378,1777937447000,-162.48047511,0.00013249,2]
[421588380,1777937447000,-3538.26790742,0.00013419,2]
[421588379,1777937447000,-2661.14124068,0.00013319,2]
[421588377,1777937447000,-672.75198674,0.00011688,2]
[421588382,1777937460000,120434.36455956,7.6e-05,2]
[421588384,1777937491000,3443.78883738,0.000208,120]
[421588388,1777937641000,987.75,0.00020822,120]
[421588389,1777938632000,-152.0,0.00010034,7]
[421588391,1777938632000,-404.19034655,0.00010509,2]
[421588390,1777938632000,-297.43365345,0.00010509,2]
[421588520,1777938638000,-162.80965345,0.00010509,2]
[421588522,1777938638000,-350.97171107,0.00012509,2]
[421588521,1777938638000,-160.0,0.00012338,2]
[421588523,1777938638000,-200.0,0.00012554,2]
[421588525,1777938638000,-2328.49858563,0.00013017,2]
[421588524,1777938638000,-160.566907,0.00012615,2]
[421588526,1777938638000,-300.64183965,0.00013116,2]
[421588529,1777938638000,-808.10116083,0.00013116,2]
[421588528,1777938638000,-808.10116083,0.00013116,2]
[421588527,1777938638000,-286.33723039,0.00013116,2]
[421588530,1777938638000,-760.20324977,0.00013116,2]
[421588532,1777938638000,-246.49310123,0.00013116,2]
[421588541,1777938638000,-808.10116083,0.00013116,2]
[421588531,1777938638000,-47.89791106,0.00013116,2]
[421588534,1777938638000,-808.10116083,0.00013116,2]
[421588535,1777938638000,-808.10116083,0.00013116,2]
[421588536,1777938638000,-808.10116083,0.00013116,2]
[421588545,1777938638000,-808.10116083,0.00013116,2]
[421588538,1777938638000,-808.10116083,0.00013116,2]
[421588542,1777938638000,-808.10116083,0.00013116,2]
[421588547,1777938638000,-808.10116083,0.00013116,2]
[421588549,1777938638000,-808.10116083,0.00013116,2]
[421588548,1777938638000,-808.10116083,0.00013116,2]
[421588550,1777938638000,-808.10116083,0.00013116,2]
[421588551,1777938638000,-1060659.07198077,0.00013117,2]
[421588533,1777938638000,-561.6080596,0.00013116,2]
[421588573,1777938641000,-3683.6641074,0.00013117,2]
[421588582,1777938644000,-3940.33963094,0.00013117,2]
[421588658,1777938647000,-71638.62813087,0.00013117,2]
[421588649,1777938647000,-1779.74298374,0.00013117,2]
[421588656,1777938647000,-31501.82230475,0.00013117,2]
[421602939,1777938983000,10000.0,0.0002,120]
[421602940,1777939209000,211.0,0.00019619,120]
[421602942,1777939210000,300.0,0.00010497,30]
[421602941,1777939210000,211.0,0.000206,120]
[421602943,1777939232000,189.0,0.00018592,120]
[421602944,1777939233000,189.0,0.00019521,120]
[421602945,1777939235000,189.0,0.00020497,120]
[421602946,1777939349000,5000.0,0.00020822,120]
[421602947,1777939350000,200.0,0.00019981,120]
[421602949,1777939410000,200.0,0.00020695,120]
[421602950,1777939454000,1688.0,0.0002082,120]
[421602951,1777939470000,200.0,0.00020353,120]
[421602952,1777939510000,159.0,0.00019741,120]
[421602953,1777939511000,159.0,0.00020728,120]
[421602954,1777939516000,2000.0,0.00011,30]
[421602955,1777939535000,2018.0,8.01e-05,2]
[421602956,1777939590000,200.0,0.00018814,120]
[421602960,1777939711000,200.0,0.00020688,120]
[421602965,1777939809000,159.0,0.00019746,120]
[421602966,1777939811000,159.0,0.00020733,120]
[421603011,1777939831000,-3983.72723009,9.741e-05,2]
[421603013,1777939831000,-506.0,9.741e-05,2]
[421603020,1777939831000,-314.7136249,0.00010553,2]
[421603017,1777939831000,-1543.76011803,9.839e-05,2]
[421603018,1777939831000,-304.06988814,0.00010089,2]
[421603014,1777939831000,-3456.23988197,9.839e-05,2]
[421603854,1777939838000,-500.0,0.00012797,2]
[421603861,1777939838000,-500.0,0.00012797,2]
[421603864,1777939838000,-500.0,0.00012797,2]
[421603860,1777939838000,-500.0,0.00012797,2]
[421603863,1777939838000,-500.0,0.00012797,2]
[421603862,1777939838000,-500.0,0.00012797,2]
[421603871,1777939838000,-500.0,0.00012797,2]
[421603872,1777939838000,-500.0,0.00012797,2]
[421603869,1777939838000,-500.0,0.00012797,2]
[421603866,1777939838000,-500.0,0.00012797,2]
[421603870,1777939838000,-500.0,0.00012797,2]
[421603868,1777939838000,-500.0,0.00012797,2]
[421603867,1777939838000,-500.0,0.00012797,2]
[421603852,1777939838000,-236.0,0.00012663,2]
[421603865,1777939838000,-500.0,0.00012797,2]
[421603856,1777939838000,-500.0,0.00012797,2]
[421603834,1777939838000,-189.5850088,0.00010884,2]
[421603850,1777939838000,-1213.67978924,0.0001229,2]
[421603827,1777939838000,-48.73881346,0.00010553,2]
[421603825,1777939838000,-451.26118654,0.00010553,2]
[421603828,1777939838000,-500.0,0.00010553,2]
[421603821,1777939838000,-185.2863751,0.00010553,2]
[421603832,1777939838000,-163.893,0.00010884,2]
[421603874,1777939838000,-500.0,0.00012797,2]
[421603823,1777939838000,-500.0,0.00010553,2]
[421603830,1777939838000,-266.00105183,0.00010553,2]
[421603836,1777939838000,-5908.68302542,0.00012,2]
[421603840,1777939838000,-10109.66884825,0.00012,12]
[421603842,1777939838000,-358.80246801,0.00012088,2]
[421603838,1777939838000,-22979.27728297,0.00012,2]
[421603858,1777939838000,-500.0,0.00012797,2]
[421603844,1777939838000,-781.58444199,0.0001229,2]
[421603859,1777939838000,-500.0,0.00012797,2]
[421603857,1777939838000,-500.0,0.00012797,2]
[421603884,1777939838000,-804.72191252,0.00012798,2]
[421603846,1777939838000,-3123.21143019,0.0001229,2]
[421603885,1777939838000,-804.72191252,0.00012798,2]
[421603892,1777939838000,-804.72191252,0.00012798,2]
[421603895,1777939838000,-804.72191252,0.00012798,2]
[421603894,1777939838000,-804.72191252,0.00012798,2]
[421603901,1777939838000,-854.24326098,0.00012798,2]
[421603911,1777939838000,-413038.94410783,0.00012799,2]
[421603900,1777939838000,-854.24326098,0.00012798,2]
[421603903,1777939838000,-854.24326098,0.00012798,2]
[421603891,1777939838000,-804.72191252,0.00012798,2]
[421603902,1777939838000,-854.24326098,0.00012798,2]
[421603908,1777939838000,-792.11647837,0.00012798,2]
[421603909,1777939838000,-792.11647837,0.00012798,2]
[421603910,1777939838000,-318.20502628,0.00012798,2]
[421603906,1777939838000,-854.24326098,0.00012798,2]
[421603907,1777939838000,-854.24326098,0.00012798,2]
[421603905,1777939838000,-854.24326098,0.00012798,2]
[421603875,1777939838000,-500.0,0.00012797,2]
[421603904,1777939838000,-854.24326098,0.00012798,2]
[421603896,1777939838000,-854.24326098,0.00012798,2]
[421603848,1777939838000,-303.72367098,0.0001229,2]
[421603890,1777939838000,-804.72191252,0.00012798,2]
[421603880,1777939838000,-284.88080516,0.00012798,2]
[421603878,1777939838000,-631.7700526,0.00012797,2]
[421603873,1777939838000,-208.97326323,0.00012797,2]
[421603877,1777939838000,-335.0,0.00012797,2]
[421603879,1777939838000,-500.0,0.00012797,2]
[421603883,1777939838000,-804.72191252,0.00012798,2]
[421603881,1777939838000,-804.72191252,0.00012798,2]
[421603882,1777939838000,-804.72191252,0.00012798,2]
[421603876,1777939838000,-500.0,0.00012797,2]
[421603897,1777939838000,-854.24326098,0.00012798,2]
[421603899,1777939838000,-854.24326098,0.00012798,2]
[421603898,1777939838000,-854.24326098,0.00012798,2]
[421603888,1777939838000,-804.72191252,0.00012798,2]
[421603893,1777939838000,-804.72191252,0.00012798,2]
[421603886,1777939838000,-804.72191252,0.00012798,2]
[421603889,1777939838000,-804.72191252,0.00012798,2]
[421603887,1777939838000,-804.72191252,0.00012798,2]
[421604086,1777939840000,-520.09031662,0.00012799,2]
[421604104,1777939843000,-403.29280148,0.00012799,2]
[421604130,1777939846000,-31270.56428413,0.00012799,2]
[421604131,1777939883000,2000.0,0.00020822,120]
[421604132,1777939892000,2000.0,0.00020822,120]
[421604133,1777939909000,3000.0,0.00020822,120]
[421604134,1777939929000,3017.8375872,0.00020822,120]
[421604135,1777940190000,200.0,0.00020363,120]
[421604136,1777940310000,200.0,0.00020791,120]
[421604137,1777940670000,200.0,0.00020317,120]
[421604292,1777940790000,200.0,0.00019544,120]
[421604323,1777941032000,-936.92612853,0.00010784,2]
[421604322,1777941032000,-180.86933223,0.00010566,2]
[421604325,1777941033000,-290.81244102,0.00011174,2]
[421604324,1777941033000,-3607.3724393,0.00010784,2]
[421604327,1777941033000,-591.25442131,0.00011837,2]
[421604326,1777941033000,-433.53320639,0.00011816,2]
[421604328,1777941033000,-2362.65266756,0.00011837,2]
[421604330,1777941033000,-5530.93144242,0.00012386,2]
[421604329,1777941033000,-300.0,0.00012,2]
[421604417,1777941043000,-741.48,0.00012262,2]
[421604553,1777941046000,-313.62535059,0.00012597,2]
[421604542,1777941046000,-595.0,0.00012386,2]
[421604551,1777941046000,-500.0,0.00012597,2]
[421604539,1777941046000,-33027.87790428,0.00012386,2]
[421604546,1777941046000,-500.0,0.00012597,2]
[421604545,1777941046000,-500.4252,0.00012597,2]
[421604540,1777941046000,-1317.6904884,0.00012386,2]
[421604544,1777941046000,-500.0,0.00012597,2]
[421604552,1777941046000,-500.0,0.00012597,2]
[421604549,1777941046000,-403.53000584,0.00012597,2]
[421604548,1777941046000,-500.0,0.00012597,2]
[421604550,1777941046000,-500.0,0.00012597,2]
[421604543,1777941046000,-5225.96856686,0.00012556,3]
[421604538,1777941046000,-3097.62759439,0.00012262,2]
[421604537,1777941046000,-1160.89240561,0.00012262,2]
[421604547,1777941046000,-500.0,0.00012597,2]
[421604555,1777941046000,-500.0,0.00012597,2]
[421604541,1777941046000,-1488.9631456,0.00012386,2]
[421604554,1777941046000,-500.0,0.00012597,2]
[421604563,1777941046000,-747.80714075,0.00012598,2]
[421604571,1777941046000,-747.80714075,0.00012598,2]
[421604572,1777941046000,-747.80714075,0.00012598,2]
[421604569,1777941046000,-747.80714075,0.00012598,2]
[421604566,1777941046000,-747.80714075,0.00012598,2]
[421604564,1777941046000,-747.80714075,0.00012598,2]
[421604567,1777941046000,-747.80714075,0.00012598,2]
[421604570,1777941046000,-747.80714075,0.00012598,2]
[421604573,1777941046000,-747.80714075,0.00012598,2]
[421604565,1777941046000,-747.80714075,0.00012598,2]
[421604556,1777941046000,-500.0,0.00012597,2]
[421604560,1777941046000,-251.5186258,0.00012598,2]
[421604561,1777941046000,-747.80714075,0.00012598,2]
[421604568,1777941046000,-747.80714075,0.00012598,2]
[421604558,1777941046000,-445.11799629,0.00012597,2]
[421604557,1777941046000,-500.0,0.00012597,2]
[421604559,1777941046000,-341.06604285,0.00012598,2]
[421604562,1777941046000,-747.80714075,0.00012598,2]
[421604576,1777941047000,-747.80714075,0.00012598,2]
[421604574,1777941047000,-747.80714075,0.00012598,2]
[421604578,1777941047000,-747.80714074,0.00012598,2]
[421604589,1777941047000,-897.36856888,0.00012598,2]
[421604588,1777941047000,-897.36856888,0.00012598,2]
[421604577,1777941047000,-747.80714075,0.00012598,2]
[421604580,1777941047000,-747.80714074,0.00012598,2]
[421604581,1777941047000,-747.80714074,0.00012598,2]
[421604582,1777941047000,-747.80714074,0.00012598,2]
[421604587,1777941047000,-747.80714074,0.00012598,2]
[421604575,1777941047000,-747.80714075,0.00012598,2]
[421604586,1777941047000,-747.80714074,0.00012598,2]
[421604583,1777941047000,-747.80714074,0.00012598,2]
[421604585,1777941047000,-747.80714074,0.00012598,2]
[421604590,1777941047000,-27916.74794699,0.00012599,2]
[421604579,1777941047000,-747.80714074,0.00012598,2]
[421604584,1777941047000,-747.80714074,0.00012598,2]
[421604593,1777941270000,200.0,0.00016926,120]
[421604594,1777941330000,200.0,0.00018321,120]
[421604596,1777941510000,200.0,0.00019585,120]
[421604597,1777941750000,200.0,0.00020627,120]
[421604598,1777941810000,200.0,0.0002019,120]
[421604632,1777942232000,-1893.02224059,0.00010306,2]
[421604633,1777942232000,-736.05693872,0.0001041,2]
[421604625,1777942232000,-881.03980434,0.00010203,2]
[421604627,1777942232000,-496.02402903,0.00010203,2]
[421604630,1777942232000,-2370.92082069,0.00010203,2]
[421604646,1777942232000,-186.23206361,0.00011551,2]
[421604642,1777942232000,-300.0,0.00010514,2]
[421604640,1777942232000,-3748.26573998,0.0001041,2]
[421604648,1777942232000,-382.85259352,0.00011551,2]
[421604644,1777942232000,-296.4460301,0.00010568,2]
[421604638,1777942232000,-515.6773213,0.0001041,2]
[421604829,1777942238000,-544.82071398,0.00012327,2]
[421604827,1777942238000,-500.0,0.00012327,2]
[421604833,1777942238000,-500.0,0.00012327,2]
[421604835,1777942238000,-500.0,0.00012327,2]
[421604834,1777942238000,-500.0,0.00012327,2]
[421604841,1777942238000,-304.90954077,0.00012327,2]
[421604838,1777942238000,-500.0,0.00012327,2]
[421604842,1777942238000,-712.02582661,0.00012327,2]
[421604837,1777942238000,-500.0,0.00012327,2]
[421604836,1777942238000,-500.0,0.00012327,2]
[421604840,1777942238000,-212.25144322,0.00012327,2]
[421604839,1777942238000,-500.0,0.00012327,2]
[421604844,1777942238000,-712.02582661,0.00012327,2]
[421604845,1777942238000,-712.02582661,0.00012327,2]
[421604825,1777942238000,-378.06870377,0.00012327,2]
[421604823,1777942238000,-500.0,0.00012327,2]
[421604824,1777942238000,-500.0,0.00012327,2]
[421604828,1777942238000,-500.0,0.00012327,2]
[421604811,1777942238000,-362.07566091,0.00011551,2]
[421604813,1777942238000,-2979.71301773,0.00011551,2]
[421604812,1777942238000,-1676.08857248,0.00011551,2]
[421604815,1777942238000,-6704.3542899,0.00011551,2]
[421604814,1777942238000,-4655.80159021,0.00011551,2]
[421604816,1777942238000,-9125.37111681,0.00011551,2]
[421604819,1777942238000,-6056.61541071,0.00011551,2]
[421604849,1777942238000,-712.02582661,0.00012327,2]
[421604817,1777942238000,-673.63089876,0.00011551,2]
[421604820,1777942238000,-155.37116776,0.00012228,2]
[421604821,1777942238000,-500.0,0.00012327,2]
[421604831,1777942238000,-500.0,0.00012327,2]
[421604832,1777942238000,-500.0,0.00012327,2]
[421604822,1777942238000,-500.0,0.00012327,2]
[421604830,1777942238000,-500.0,0.00012327,2]
[421604826,1777942238000,-500.0,0.00012327,2]
[421604818,1777942238000,-2694.52359502,0.00011551,2]
[421604847,1777942238000,-712.02582661,0.00012327,2]
[421604843,1777942238000,-415.74263609,0.00012327,2]
[421604848,1777942238000,-712.02582661,0.00012327,2]
[421604866,1777942238000,-500.0,0.00012328,2]
[421604868,1777942238000,-500.0,0.00012328,2]
[421604850,1777942238000,-712.02582661,0.00012327,2]
[421604874,1777942238000,-501.14168986,0.00012328,2]
[421604875,1777942238000,-500.0,0.00012328,2]
[421604873,1777942238000,-500.93646022,0.00012328,2]
[421604876,1777942238000,-500.0,0.00012328,2]
[421604872,1777942238000,-970.8,0.00012328,2]
[421604877,1777942238000,-500.18797867,0.00012328,2]
[421604878,1777942238000,-500.17937627,0.00012328,2]
[421604880,1777942238000,-500.15067128,0.00012328,2]
[421604881,1777942238000,-500.0,0.00012328,2]
[421604885,1777942238000,-500.06579477,0.00012328,2]
[421604882,1777942238000,-500.0,0.00012328,2]
[421604884,1777942238000,-500.31242994,0.00012328,2]
[421604883,1777942238000,-1229.35,0.00012328,2]
[421604879,1777942238000,-500.0,0.00012328,2]
[421604871,1777942238000,-458.34956716,0.00012328,2]
[421604870,1777942238000,-41.65043284,0.00012328,2]
[421604867,1777942238000,-500.10736902,0.00012328,2]
[421604846,1777942238000,-712.02582661,0.00012327,2]
[421604851,1777942238000,-712.02582661,0.00012327,2]
[421604854,1777942238000,-712.02582661,0.00012327,2]
[421604869,1777942238000,-500.26158665,0.00012328,2]
[421604853,1777942238000,-712.02582661,0.00012327,2]
[421604855,1777942238000,-712.02582661,0.00012327,2]
[421604857,1777942238000,-712.02582661,0.00012327,2]
[421604856,1777942238000,-712.02582661,0.00012327,2]
[421604852,1777942238000,-712.02582661,0.00012327,2]